bitfinex/quotes_SOLUSD_20250823
["timestamp","ask_amount","ask_price","bid_price","bid_amount"]
[1755922710639,79.0,199.33,199.32,0.69]
[1755922710834,79.0,199.33,199.3,0.69]
[1755922711013,79.0,199.33,199.29,0.03]
[1755922711218,79.0,199.33,199.31,0.69]
[1755922712339,79.0,199.33,199.29,11.19812395]
[1755922712538,79.0,199.33,199.32,0.69]
[1755922713219,79.0,199.33,199.32,4.24420569]
[1755922713426,79.0,199.33,199.32,0.69]
[1755922716840,79.0,199.33,199.32,15.41174636]
[1755922718040,79.0,199.33,199.32,11.85812395]
[1755922718251,79.0,199.33,199.32,15.41038566]
[1755922718836,79.0,199.33,199.32,3.55226171]
[1755922719134,79.0,199.33,199.3,26.03]
[1755922719340,79.0,199.33,199.3,37.19812395]
[1755922719553,79.0,199.33,199.3,37.88812395]
[1755922719935,118.7,199.33,199.3,0.03]
[1755922720133,119.42,199.33,199.3,0.03]
[1755922720647,118.7,199.33,199.3,0.03]
[1755922721251,0.72,199.32,199.3,0.03]
[1755922721637,118.7,199.33,199.3,0.03]
[1755922722527,79.0,199.33,199.32,11.16812395]
[1755922722738,79.0,199.33,199.32,11.85812395]
[1755922724062,79.0,199.33,199.32,11.16812395]
[1755922724262,79.0,199.33,199.32,11.85812395]
[1755922724432,79.0,199.33,199.32,11.16812395]
[1755922725636,79.0,199.33,199.3,0.72]
[1755922725826,79.0,199.33,199.32,11.16812395]
[1755922726029,79.0,199.33,199.32,11.85812395]
[1755922726660,79.0,199.33,199.32,11.16812395]
[1755922728439,79.0,199.33,199.32,6.80690526]
[1755922728758,79.0,199.33,199.32,7.49690526]
[1755922730361,79.0,199.33,199.32,7.52690526]
[1755922730568,79.0,199.33,199.32,6.83690526]
[1755922730873,0.72,199.33,199.32,0.03]
[1755922731043,26.13930557,199.33,199.32,0.03]
[1755922731363,52.42362871,199.33,199.32,0.03]
[1755922731655,26.0,199.31,199.3,0.03]
[1755922731841,26.0,199.31,199.26,0.03]
[1755922731842,0.28432314,199.3,199.26,0.03]
[1755922732040,20.68682241,199.27,199.26,0.03]
[1755922732354,60.48682241,199.27,199.26,0.03]
[1755922732532,92.22513926,199.27,199.26,0.03]
[1755922733975,66.22513926,199.27,199.26,0.03]
[1755922734135,46.68682241,199.25,199.24,0.03]
[1755922734456,90.87226388,199.25,199.24,0.03]
[1755922734628,51.79226388,199.25,199.24,0.03]
[1755922734828,91.30794074,199.25,199.24,0.03]
[1755922735343,96.32676131,199.25,199.24,0.03]
[1755922735932,91.30794074,199.25,199.24,0.03]
[1755922736167,96.32676131,199.25,199.24,0.03]
[1755922740665,79.39559401,199.25,199.24,0.03]
[1755922740968,76.99234673,199.25,199.24,0.03]
[1755922741137,96.28676131,199.25,199.24,0.03]
[1755922741633,96.57108445,199.25,199.24,0.03]
[1755922742238,39.59559401,199.21,199.18,0.03]
[1755922742456,11.47666987,199.19,199.18,0.03]
[1755922742972,12.15666987,199.19,199.18,0.03]
[1755922743154,17.17700221,199.19,199.18,0.03]
[1755922743472,69.95259622,199.19,199.18,0.03]
[1755922743641,2.011314,199.21,199.18,0.7]
[1755922743847,11.19234673,199.21,199.18,0.03]
[1755922744060,51.09234673,199.2,199.18,0.03]
[1755922744260,11.19234673,199.19,199.18,0.03]
[1755922744592,25.75226388,199.19,199.18,0.03]
[1755922744963,14.55991715,199.19,199.18,0.03]
[1755922745366,30.77259622,199.19,199.18,0.03]
[1755922747268,19.58024949,199.19,199.18,1e-08]
[1755922747584,30.77259622,199.19,199.18,1e-08]
[1755922747880,70.67259622,199.19,199.18,1e-08]
[1755922750688,95.97259622,199.19,199.18,1e-08]
[1755922750892,96.65259622,199.19,199.18,1e-08]
[1755922751688,70.65259622,199.19,199.18,1e-08]
[1755922751861,59.46024949,199.19,199.18,1e-08]
[1755922752061,70.65259622,199.19,199.18,1e-08]
[1755922752252,72.66431422,199.19,199.18,1e-08]
[1755922752576,72.68431422,199.19,199.18,1e-08]
[1755922755383,39.87991715,199.17,199.16,0.03]
[1755922755675,90.95226388,199.17,199.16,0.03]
[1755922755979,91.63226388,199.17,199.16,0.03]
[1755922757279,78.79,199.1,199.04,0.03]
[1755922757488,129.88234673,199.1,199.04,0.03]
[1755922757803,129.88234673,199.1,199.04,11.22234673]
[1755922758677,118.69,199.1,199.05,11.19234673]
[1755922759262,118.69,199.1,199.04,0.03]
[1755922759775,118.69,199.1,199.04,11.22234673]
[1755922759969,129.88234673,199.1,199.04,11.22234673]
[1755922760586,129.88234673,199.1,199.04,0.03]
[1755922760801,129.88234673,199.1,199.04,11.22234673]
[1755922761175,129.88234673,199.1,199.04,0.03]
[1755922761383,129.80234673,199.1,199.04,0.03]
[1755922761595,129.80234673,199.1,199.04,11.22234673]
[1755922764286,125.43631313,199.1,199.04,6.85631313]
[1755922764474,125.43631313,199.1,199.05,0.03]
[1755922765984,92.18559401,199.09,199.05,0.03]
[1755922766159,99.01190714,199.09,199.05,0.03]
[1755922766872,39.59559401,199.07,199.05,0.03]
[1755922767099,86.18190714,199.07,199.05,0.03]
[1755922767293,86.84190714,199.07,199.05,0.03]
[1755922767969,92.14958889,199.07,199.05,0.03]
[1755922769065,52.38958889,199.07,199.05,0.03]
[1755922769389,92.18958889,199.07,199.05,0.03]
[1755922772877,52.38958889,199.07,199.05,0.03]
[1755922773178,86.16190714,199.07,199.06,0.73]
[1755922773379,60.18190714,199.07,199.06,0.73]
[1755922773771,46.58631313,199.07,199.06,0.73]
[1755922774674,46.58631313,199.07,199.06,0.03]
[1755922774990,46.58631313,199.07,199.06,0.73]
[1755922775305,65.48958889,199.07,199.06,0.03]
[1755922776188,92.50559401,199.04,199.03,0.7]
[1755922776508,60.16190714,199.04,199.02,0.03]
[1755922776804,6.82631313,199.03,199.02,0.03]
[1755922777502,20.70623028,199.03,199.02,0.03]
[1755922778272,21.36623028,199.03,199.02,0.03]
[1755922778481,26.39059846,199.03,199.02,0.03]
[1755922779201,33.21691159,199.03,199.02,0.03]
[1755922779377,33.21691159,199.03,198.97,0.7]
[1755922779378,26.0,199.0,198.97,0.7]
[1755922779575,6.82631313,198.98,198.97,0.7]
[1755922779784,6.82631313,198.98,198.97,4.23554338]
[1755922780001,13.59559401,198.97,198.93,0.7]
[1755922780180,6.82631313,198.94,198.89,0.2]
[1755922780378,6.82631313,198.92,198.9,3.53685582]
[1755922780601,0.28432314,198.96,198.91,3.53685582]
[1755922780777,26.0,198.92,198.89,0.9]
[1755922780978,39.92,198.91,198.9,0.7]
[1755922781287,39.92,198.91,198.89,0.2]
[1755922781690,39.92,198.91,198.9,0.7]
[1755922781899,46.74631313,198.91,198.9,0.7]
[1755922782202,13.59559401,198.9,198.89,0.2]
[1755922782502,25.10834079,198.9,198.89,0.2]
[1755922783275,0.28432314,198.9,198.89,0.9]
[1755922783603,51.10834079,198.9,198.89,0.9]
[1755922783792,91.04834079,198.9,198.89,0.2]
[1755922784680,79.81991715,198.9,198.89,0.2]
[1755922784880,91.04834079,198.9,198.89,0.2]
[1755922786008,51.10834079,198.9,198.89,0.2]
[1755922786217,91.02834079,198.9,198.89,0.2]
[1755922786602,51.10834079,198.9,198.89,0.2]
[1755922786796,91.00834079,198.9,198.89,0.2]
[1755922787181,91.00834079,198.9,198.89,0.9]
[1755922787382,37.22842364,198.9,198.89,0.9]
[1755922787615,77.12842364,198.9,198.89,0.9]
[1755922787807,65.9,198.9,198.89,0.9]
[1755922788108,51.14842364,198.9,198.89,0.9]
[1755922788890,39.92,198.9,198.89,0.9]
[1755922790006,51.14842364,198.91,198.89,0.9]
[1755922790186,51.14842364,198.91,198.9,0.7]
[1755922791987,51.14842364,198.91,198.89,0.2]
[1755922792337,11.22842364,198.9,198.89,0.2]
[1755922792986,11.22842364,198.9,198.89,0.9]
[1755922793182,11.22842364,198.9,198.89,0.2]
[1755922795294,51.08842364,198.9,198.89,0.2]
[1755922797910,39.86,198.9,198.89,0.2]
[1755922798218,39.86,198.9,198.89,0.86]
[1755922799827,51.08842364,198.9,198.89,0.86]
[1755922800396,79.0,198.91,198.89,12.08842364]
[1755922800592,79.0,198.91,198.9,11.88842364]
[1755922800833,79.0,198.91,198.9,0.66]
[1755922801040,79.0,198.9,198.89,0.2]
[1755922801237,90.22842364,198.9,198.89,0.2]
[1755922801412,25.82834079,198.9,198.89,0.2]
[1755922802030,13.87991715,198.9,198.89,0.2]
[1755922802236,25.10834079,198.9,198.89,0.2]
[1755922802408,30.85599287,198.9,198.89,0.2]
[1755922803115,25.82834079,198.9,198.89,0.2]
[1755922803342,64.94834079,198.9,198.89,0.2]
[1755922803927,25.82834079,198.9,198.89,0.2]
[1755922804109,65.64834079,198.9,198.89,0.2]
[1755922804310,26.47012529,198.9,198.89,0.2]
[1755922804507,66.29012529,198.9,198.89,0.2]
[1755922806231,61.26247321,198.9,198.89,0.2]
[1755922806406,60.54247321,198.9,198.89,0.2]
[1755922807036,13.87991715,198.9,198.89,0.2]
[1755922807221,60.50247321,198.9,198.89,0.2]
[1755922808539,66.25012529,198.9,198.89,0.2]
[1755922809120,13.59559401,198.9,198.89,0.2]
[1755922809326,26.0,198.91,198.89,0.86]
[1755922809638,46.62255606,198.9,198.89,0.2]
[1755922811031,39.78,198.9,198.89,0.86]
[1755922811228,26.0,198.91,198.89,0.86]
[1755922811229,6.84255606,198.91,198.89,0.86]
[1755922811430,46.60255606,198.91,198.9,0.66]
[1755922812151,46.60255606,198.91,198.89,0.2]
[1755922812317,46.60255606,198.91,198.89,0.86]
[1755922812318,6.84255606,198.9,198.89,0.86]
[1755922813840,39.76,198.91,198.89,0.86]
[1755922814212,46.60255606,198.91,198.89,0.2]
[1755922814435,46.60255606,198.91,198.9,0.66]
[1755922814941,26.0,198.94,198.9,0.66]
[1755922814942,111.84255606,198.94,198.9,0.66]
[1755922815124,79.0,198.94,198.9,7.50255606]
[1755922815331,79.0,198.94,198.91,10.99314305]
[1755922815630,85.84255606,198.99,198.92,7.50255606]
[1755922815835,79.0,198.99,198.94,6.84255606]
[1755922816017,0.06,199.02,198.95,0.66]
[1755922816219,6.84255606,198.99,198.95,0.66]
[1755922816430,46.64255606,198.99,198.96,0.66]
[1755922816925,46.64255606,198.99,198.97,0.66]
[1755922817141,39.8,198.99,198.98,0.66]
[1755922818244,0.06,199.02,198.98,0.66]
[1755922818420,46.68255606,199.02,198.99,0.66]
[1755922818755,46.68255606,199.02,198.9,33.1268792]
[1755922818756,39.84,199.02,198.96,0.66]
[1755922819046,6.84255606,199.01,198.96,0.66]
[1755922819228,39.78,199.0,198.95,6.84255606]
[1755922819438,39.78,199.0,198.97,0.66]
[1755922819658,39.78,199.0,198.95,6.84255606]
[1755922819946,39.78,199.0,198.9,26.0]
[1755922819947,39.78,199.0,198.98,0.66]
[1755922820146,0.06,199.02,198.98,0.66]
[1755922820147,0.06,199.02,198.99,6.84255606]
[1755922820349,0.06,199.02,199.01,6.84255606]
[1755922820572,0.06,199.02,199.01,10.4066951]
[1755922820863,0.06,199.04,199.01,11.0666951]
[1755922821020,0.06,199.04,199.03,6.84255606]
[1755922821518,0.06,199.04,199.03,11.06067976]
[1755922822668,0.06,199.04,199.03,4.2181237]
[1755922822824,0.06,199.04,199.0,7.50255606]
[1755922823023,6.90255606,199.04,198.92,39.8]
[1755922823974,0.78,199.04,198.98,0.66]
[1755922824264,6.84255606,199.03,198.98,0.66]
[1755922824441,6.84255606,199.03,198.99,0.66]
[1755922824823,6.84255606,199.02,198.97,0.66]
[1755922825027,6.84255606,199.01,198.98,3.55807269]
[1755922825229,6.84255606,199.01,198.95,0.66]
[1755922825437,6.84255606,199.01,198.96,3.55723156]
[1755922825631,6.84255606,199.01,198.97,3.55723156]
[1755922825837,6.84255606,199.01,198.98,4.21723156]
[1755922826130,46.64255606,199.02,198.98,0.66]
[1755922826349,39.8,199.02,198.98,0.66]
[1755922826656,39.8,199.02,198.99,0.66]
[1755922827133,39.8,199.02,199.0,4.21450317]
[1755922827335,39.84,199.04,199.01,0.69]
[1755922827536,39.84,199.04,198.99,6.84255606]
[1755922827736,39.84,199.04,199.02,0.69]
[1755922827946,79.0,199.03,199.0,0.69]
[1755922828157,79.0,199.02,199.0,0.69]
[1755922828355,79.0,199.02,198.99,6.84255606]
[1755922828563,79.0,199.02,199.01,0.69]
[1755922828772,0.06,199.04,199.01,7.53255606]
[1755922829068,0.06,199.04,199.03,6.84255606]
[1755922829257,0.06,199.04,199.03,11.08232131]
[1755922829678,0.06,199.04,199.03,7.53255606]
[1755922830351,0.06,199.04,199.03,11.89166163]
[1755922831239,0.06,199.04,199.03,15.43780768]
[1755922832659,0.06,199.04,199.03,15.43282658]
[1755922833548,0.06,199.04,199.03,15.42939514]
[1755922834641,0.06,199.04,199.03,4.22773351]
[1755922834953,0.06,199.04,199.03,15.42939514]
[1755922835736,0.06,199.04,199.03,15.42700881]
[1755922836245,0.06,199.04,199.03,15.71133195]
[1755922836461,0.06,199.04,199.03,44.39253696]
[1755922837061,0.06,199.04,199.03,84.09253696]
[1755922837360,0.06,199.06,199.05,39.87991715]
[1755922837562,0.06,199.08,199.07,0.28432314]
[1755922837732,0.06,199.08,199.07,28.61692596]
[1755922837938,0.06,199.08,199.07,29.30692596]
[1755922838561,0.06,199.08,199.07,29.3001776]
[1755922840060,0.06,199.08,199.07,31.3110866]
[1755922841248,0.06,199.08,199.07,3.52859882]
[1755922841451,0.06,199.08,199.06,11.20166163]
[1755922841676,0.06,199.08,199.06,37.20166163]
[1755922843578,0.06,199.08,199.07,11.20166163]
[1755922846171,0.06,199.08,199.06,37.20166163]
[1755922846966,0.72,199.08,199.06,11.20166163]
[1755922847169,0.06,199.08,199.06,11.89166163]
[1755922847472,0.06,199.08,199.07,11.89166163]
[1755922847851,0.06,199.08,199.07,11.20166163]
[1755922849052,0.06,199.08,199.07,15.40941701]
[1755922850573,0.06,199.08,199.07,41.40941701]
[1755922850943,0.06,199.08,199.07,29.28998982]
[1755922851267,0.06,199.1,199.09,39.59559401]
[1755922851465,0.06,199.1,199.09,94.21890851]
[1755922851665,0.06,199.1,199.09,94.90890851]
[1755922852474,0.06,199.1,199.09,90.52500188]
[1755922853250,0.06,199.1,199.09,69.13732973]
[1755922853571,0.06,199.1,199.09,76.64508473]
[1755922853965,0.06,199.1,199.09,76.64898597]
[1755922855479,0.06,199.1,199.09,90.52890312]
[1755922856776,0.06,199.1,199.09,89.83890312]
[1755922856962,0.06,199.1,199.09,90.52890312]
[1755922857159,0.06,199.1,199.09,92.53971112]
[1755922859553,0.02050749,199.1,199.09,92.53971112]
[1755922859961,0.02050749,199.1,199.09,89.01848015]
[1755922860184,0.02050749,199.1,199.09,92.54925498]
[1755922860847,0.02050749,199.1,199.09,92.55228496]
[1755922861257,0.02050749,199.1,199.09,31.82893595]
[1755922861460,0.02050749,199.1,199.09,78.20669095]
[1755922861686,0.02050749,199.1,199.09,78.91669095]
[1755922862874,0.02050749,199.1,199.09,78.20669095]
[1755922863762,0.02050749,199.1,199.09,78.16669095]
[1755922865071,0.02050749,199.1,199.09,78.13694484]
[1755922865490,0.06,199.21,199.19,13.59559401]
[1755922865684,0.06,199.21,199.2,64.91373888]
[1755922865993,0.06,199.21,199.2,64.55173085]
[1755922866171,0.06,199.21,199.2,74.55173085]
[1755922866495,0.06,199.21,199.2,75.05373888]
[1755922866792,0.06,199.21,199.2,77.06333488]
[1755922867169,0.06,199.21,199.2,82.14371138]
[1755922867785,0.06,199.21,199.2,76.58132685]
[1755922868183,0.06,199.21,199.2,76.56857493]
[1755922868895,0.06,199.21,199.2,5.64207646]
[1755922869073,0.06,199.21,199.2,52.09983146]
[1755922869273,0.06,199.21,199.2,52.24199303]
[1755922870287,0.06,199.21,199.2,56.60507306]
[1755922872401,0.06,199.21,199.2,57.31507306]
[1755922873895,0.73,199.21,199.2,5.49991489]
[1755922874097,0.73,199.21,199.2,45.09991489]
[1755922874398,0.06,199.21,199.2,56.28074992]
[1755922874601,0.06,199.21,199.2,45.09991489]
[1755922874781,0.06,199.21,199.2,56.28074992]
[1755922877302,0.06,199.21,199.2,52.79043103]
[1755922877510,0.06,199.21,199.2,45.10358406]
[1755922877683,0.06,199.21,199.2,56.28441909]
[1755922877882,0.06,199.21,199.2,56.28469985]
[1755922878782,0.06,199.21,199.2,52.79043103]
[1755922879003,0.06,199.21,199.2,56.28480702]
[1755922880613,0.06,199.21,199.2,56.25437381]
[1755922881980,0.06,199.21,199.2,45.07353878]
[1755922882294,0.73,199.21,199.2,56.25437381]
[1755922882499,0.06,199.21,199.2,56.13437381]
[1755922883291,0.06,199.21,199.2,16.65437381]
[1755922883502,0.06,199.21,199.2,56.13437381]
[1755922884381,0.67,199.21,199.2,44.95353878]
[1755922884605,0.67,199.21,199.2,42.94394278]
[1755922884781,0.67,199.21,199.2,68.94394278]
[1755922886720,0.67,199.21,199.2,68.94157061]
[1755922886884,0.06,199.21,199.2,68.94157061]
[1755922888315,11.95083503,199.21,199.2,3.46157061]
[1755922888621,11.95083503,199.21,199.19,39.42]
[1755922888622,90.95083503,199.21,199.19,39.42]
[1755922888784,11.89083503,199.2,199.19,39.42]
[1755922888989,0.06,199.21,199.19,42.88323376]
[1755922889203,0.06,199.21,199.2,3.46231058]
[1755922889608,0.06,199.21,199.2,14.64314561]
[1755922889825,0.06,199.21,199.2,14.64331626]
[1755922890319,0.06,199.21,199.2,10.27593291]
[1755922892640,0.06,199.21,199.2,3.46248123]
[1755922892801,0.06,199.21,199.2,10.27593291]
[1755922894017,0.06,199.23,199.21,39.87991715]
[1755922894218,0.06,199.23,199.21,90.35585006]
[1755922895703,0.06,199.23,199.21,86.89336883]
[1755922895919,0.06,199.23,199.21,90.35695691]
[1755922896298,0.06,199.23,199.21,88.90266183]
[1755922896497,0.06,199.23,199.21,92.36589071]
[1755922896703,0.06,199.23,199.21,102.36589071]
[1755922896925,0.06,199.23,199.22,13.87991715]
[1755922897124,0.06,199.23,199.22,24.87659771]
[1755922897633,0.06,199.23,199.22,24.15659771]
[1755922897803,0.06,199.23,199.22,63.63443614]
[1755922897995,0.06,199.23,199.22,64.49659771]
[1755922898417,0.06,199.23,199.22,24.87659771]
[1755922898618,0.06,199.23,199.22,63.77708365]
[1755922899535,0.06,199.23,199.22,65.78657865]
[1755922899901,0.06,199.23,199.22,5.47320982]
[1755922900103,0.77,199.23,199.22,45.07320982]
[1755922900306,0.06,199.23,199.22,66.48657865]
[1755922904004,0.06,199.23,199.22,65.76657865]
[1755922904431,0.77,199.23,199.22,45.07320982]
[1755922904604,0.77,199.23,199.22,51.8466615]
[1755922904802,0.06,199.23,199.22,51.8466615]
[1755922905021,0.06,199.23,199.22,51.85102137]
[1755922908832,0.06,199.23,199.22,52.85534451]
[1755922909210,0.06,199.23,199.22,66.45093852]
[1755922911243,0.00292477,199.23,199.22,66.5094499]
[1755922914023,0.00292477,199.23,199.22,62.98286383]
[1755922914224,0.00292477,199.23,199.22,66.47619585]
[1755922915938,0.00292477,199.23,199.22,66.37619585]
[1755922917141,0.00292477,199.23,199.22,26.91619585]
[1755922917362,0.00292477,199.23,199.22,66.35619585]
[1755922917841,0.06,199.25,199.22,66.35619585]
[1755922917842,0.06,199.25,199.24,13.59559401]
[1755922918045,0.06,199.25,199.24,64.12860809]
[1755922918250,0.06,199.25,199.24,64.81860809]
[1755922918428,0.06,199.25,199.24,66.82759809]
[1755922920539,0.72,199.25,199.24,65.61569085]
[1755922920745,0.06,199.25,199.24,66.30569085]
[1755922920937,0.06,199.25,199.24,65.61569085]
[1755922921358,0.06,199.25,199.24,66.30569085]
[1755922922159,0.06,199.25,199.24,62.12235883]
[1755922922332,0.06,199.25,199.24,65.61338886]
[1755922922535,0.06,199.25,199.24,66.30338886]
[1755922922733,0.06,199.25,199.24,66.30304528]
[1755922924150,0.00342748,199.25,199.24,66.30304528]
[1755922925265,0.00342748,199.25,199.24,76.30304528]
[1755922925562,0.00342748,199.25,199.24,76.80495252]
[1755922926060,0.00342748,199.25,199.24,76.76495252]
[1755922926451,0.00342748,199.25,199.24,37.38495252]
[1755922926750,0.00342748,199.25,199.24,69.93150084]
[1755922926943,0.00342748,199.25,199.24,76.74495252]
[1755922927852,0.06,199.27,199.26,26.0]
[1755922928057,0.06,199.27,199.26,63.54405528]
[1755922928251,0.06,199.27,199.26,64.23405528]
[1755922928933,0.06,199.27,199.26,24.87405528]
[1755922929158,0.06,199.27,199.26,65.55284328]
[1755922929353,0.06,199.27,199.26,66.24284328]
[1755922931360,0.06,199.27,199.26,66.24024168]
[1755922932250,0.06,199.29,199.27,13.87991715]
[1755922932462,0.06,199.29,199.28,70.85671186]
[1755922932655,0.06,199.29,199.28,71.54671186]
[1755922932869,0.06,199.29,199.28,73.55509686]
[1755922933267,0.06,199.29,199.28,66.74164518]
[1755922933756,0.06,199.29,199.28,58.736387]
[1755922934074,0.72,199.29,199.28,65.40767711]
[1755922934252,0.72,199.29,199.28,65.26551554]
[1755922934762,0.72,199.29,199.28,58.59422543]
[1755922935175,0.72,199.29,199.28,44.85646985]
[1755922935482,0.72,199.29,199.28,51.95424467]
[1755922935685,0.72,199.29,199.28,2.15054657]
[1755922935869,0.72,199.29,199.28,41.51054657]
[1755922936270,0.72,199.29,199.28,41.65270814]
[1755922936481,0.72,199.29,199.28,45.14237745]
[1755922939084,0.72,199.29,199.28,5.49988327]
[1755922939284,0.72,199.29,199.28,42.83149827]
[1755922940878,0.72,199.29,199.28,68.85149827]
[1755922941195,7.53345168,199.29,199.28,68.85149827]
[1755922941404,7.53345168,199.29,199.28,42.8193898]
[1755922942167,7.53345168,199.29,199.28,3.4593898]
[1755922942568,86.53345168,199.29,199.28,3.4593898]
[1755922942797,93.34690336,199.29,199.21,0.03]
[1755922942995,6.81345168,199.23,199.22,42.77295314]
[1755922943213,7.47345168,199.23,199.22,29.41295314]
[1755922943362,7.47345168,199.23,199.22,68.77295314]
[1755922943566,7.47345168,199.23,199.22,29.41295314]
[1755922943795,7.47345168,199.23,199.22,68.77295314]
[1755922944693,7.47345168,199.23,199.22,68.7718637]
[1755922945795,79.0,199.28,199.23,0.28432314]
[1755922945970,0.66,199.28,199.24,42.7718637]
[1755922946170,0.66,199.27,199.25,3.4118637]
[1755922946370,6.81345168,199.28,199.26,42.7718637]
[1755922946672,0.06,199.29,199.26,42.7718637]
[1755922946673,6.81345168,199.27,199.26,39.36]
[1755922946886,6.81345168,199.27,199.26,42.8258681]
[1755922947079,7.47345168,199.27,199.26,42.8258681]
[1755922948393,0.66,199.27,199.26,42.8258681]
[1755922948574,7.47345168,199.27,199.26,42.8258681]
[1755922949297,0.06,199.29,199.26,42.8258681]
[1755922949298,0.06,199.29,199.28,26.0]
[1755922949501,0.06,199.29,199.28,68.8258681]
[1755922950507,0.06,199.29,199.28,68.82205469]
[1755922951002,0.06,199.29,199.28,65.36]
[1755922951177,0.06,199.29,199.28,68.82205469]
[1755922952282,0.06,199.29,199.28,70.83114569]
[1755922952908,0.06,199.29,199.28,70.86114569]
[1755922954803,0.06,199.29,199.28,71.54114569]
[1755922955309,0.06,199.29,199.28,70.86114569]
[1755922955499,0.06,199.29,199.28,31.50114569]
[1755922955695,0.06,199.29,199.28,70.86114569]
[1755922956301,0.06,199.29,199.28,71.54114569]
[1755922957316,0.06,199.29,199.28,70.86114569]
[1755922958517,0.06,199.29,199.28,71.54114569]
[1755922959503,0.06,199.29,199.28,68.079091]
[1755922959802,0.06,199.29,199.28,71.54069521]
[1755922960320,0.06,199.29,199.28,70.86069521]
[1755922961213,0.06,199.29,199.28,71.54069521]
[1755922963520,0.06,199.29,199.28,70.86069521]
[1755922964218,0.06,199.29,199.28,71.54069521]
[1755922965002,7.56345168,199.29,199.28,5.50069521]
[1755922965235,0.75,199.29,199.28,44.86069521]
[1755922965406,0.75,199.29,199.28,42.85160421]
[1755922966310,0.06,199.29,199.28,42.85160421]
[1755922966892,7.56345168,199.29,199.28,42.85160421]
[1755922968907,7.56345168,199.29,199.28,42.80606614]
[1755922969301,0.06,199.29,199.28,42.80606614]
[1755922969804,0.06,199.29,199.28,43.48606614]
[1755922970210,0.06,199.29,199.28,51.04951814]
[1755922971398,0.06,199.29,199.28,51.33384128]
[1755922971710,0.06,199.29,199.28,71.74288697]
[1755922971914,0.06,199.29,199.28,64.92943529]
[1755922973322,0.06,199.29,199.28,97.74288697]
[1755922974028,0.06,199.29,199.28,90.24943529]
[1755922974897,0.06,199.29,199.28,37.00951814]
[1755922975219,0.06,199.29,199.28,76.34951814]
[1755922978035,0.06,199.29,199.28,76.36959345]
[1755922978722,0.06,199.29,199.28,76.37061434]
[1755922978919,0.06,199.29,199.28,50.37061434]
[1755922981017,0.06,199.29,199.28,11.03061434]
[1755922981018,7.55345168,199.29,199.28,11.03061434]
[1755922981230,0.06,199.29,199.28,42.80716234]
[1755922981532,0.06,199.29,199.28,50.36061334]
[1755922984319,0.06,199.29,199.28,51.03061334]
[1755922984944,0.06,199.29,199.28,51.31493648]
[1755922985323,0.06,199.29,199.28,72.22578867]
[1755922986224,0.06,199.29,199.28,72.23603187]
[1755922986629,0.06,199.29,199.28,68.78862633]
[1755922986819,0.06,199.29,199.28,72.23574144]
[1755922987019,0.06,199.29,199.28,71.73393494]
[1755922987211,0.06,199.29,199.28,72.23574144]
[1755922988841,0.01951696,199.29,199.28,72.23574144]
[1755922989215,0.01951696,199.29,199.28,72.23292913]
[1755922991938,0.01951696,199.29,199.28,25.57767095]
[1755922992141,0.01951696,199.29,199.28,64.91767095]
[1755922992353,0.01951696,199.29,199.28,71.73112263]
[1755922995455,0.01951696,199.29,199.28,71.7351645]
[1755922996169,0.01951696,199.29,199.28,71.73475757]
[1755922996325,0.01951696,199.29,199.28,71.73491413]
[1755922998441,0.01951696,199.29,199.28,71.79100613]
[1755922999564,0.01951696,199.29,199.28,68.28681983]
[1755922999935,0.01951696,199.29,199.28,71.79049172]
[1755923000367,0.01951696,199.29,199.28,68.28681983]